Cogmind - Beta 13 @@@ ROGUE MODE // 2024.04.17 @ 20:54:28 Player: Korywon Result: Destroyed by Y-45 Defender with Beam Rifle Performance ------------- Evolutions (2) 1000 Regions Visited (7) 1400 Robots Destroyed (144) 720 Value Destroyed (3290) 3290 Prototype IDs (26) 520 Alien Tech Used (0) 0 Bonus (530) 530 TOTAL SCORE: 7460 Bonus ------- High Alert Combat Kills 141 Follower Combat Kills 339 Aligned with FarCom 300 Friendly Fire -250 Cogmind --------- Core Integrity 0/550 Matter 4/450 Energy 57/100 System Corruption 13% Temperature Warm (137) Movement Core (1550) Ox30 Location -8/Materials Parts ------- > --- POWER (1) -------- (None) > --- PROPULSION (4) --- (None) > --- UTILITY (3) ------ Huge Storage Unit Compact Matter Pod > --- WEAPON (3) ------- Beamcaster Assault Cannon > --- INVENTORY (25) --- Improved Heat Sink Large Storage Unit Compact Matter Pod (150) Sensor Array Cloak of Protection Shock Absorption System Heavy Rocket Launcher Great Maul Peak State ------------ > --- POWER ------------ Light Angular Momentum Engine > --- PROPULSION ------- Light Treads Advanced Treads > --- UTILITY ---------- Huge Storage Unit Sensor Array Melee Analysis Suite > --- WEAPON ----------- Gauss Rifle Assault Cannon Heavy Rocket Launcher > --- INVENTORY -------- Improved Heat Sink Large Storage Unit Compact Matter Pod Compact Matter Pod Sensor Array Cloak of Protection Shock Absorption System Shock Absorption System Beamcaster Assault Cannon Assault Cannon Assault Cannon Heavy Rocket Launcher Great Maul [Rating: 29] Favorites ----------- Power Light Angular Momentum Engine Engine Light Angular Momentum Engine Power Core Light Nuclear Core Propulsion Light Treads Treads Light Treads Leg Aluminum Leg Utility Large Storage Unit Device Cloak of Protection Storage Large Storage Unit Processor Melee Analysis Suite Protection Light Armor Plating Weapon Heavy Assault Rifle Energy Gun Beamcaster Ballistic Gun Heavy Assault Rifle Ballistic Cannon Improved Light Cannon Launcher Rocket Launcher Impact Weapon Great Maul Build | -11 -10 -10 -9 -9 -9 -8 -8 ------- Run | Yrd Mat Min Mat Min Exi Min Mat Slots Evolved 4 | . . . 2 . . . 2 Power . | . . . . . . . . Propulsion 2 | . . . . . . . 2 Utility 1 | . . . 1 . . . . Weapon 1 | . . . 1 . . . . Parts Attached 65 | 6 2 4 17 7 1 . 28 Power 7 | 1 . 1 1 . . . 4 Engine 4 | 1 . . 1 . . . 2 Core 3 | . . 1 . . . . 2 Reactor . | . . . . . . . . Propulsion 12 | 2 . 1 3 . . . 6 Treads 11 | 2 . 1 3 . . . 5 Leg 1 | . . . . . . . 1 Wheel . | . . . . . . . . Hover . | . . . . . . . . Flight . | . . . . . . . . Utility 19 | 1 2 . 7 1 1 . 7 Device 4 | . . . . . 1 . 3 Storage 5 | 1 2 . . . . . 2 Processor 1 | . . . . . . . 1 Hackware . | . . . . . . . . Protection 9 | . . . 7 1 . . 1 Artifact . | . . . . . . . . Weapon 27 | 2 . 2 6 6 . . 11 Energy Gun 3 | . . . 2 . . . 1 Energy Cannon . | . . . . . . . . Ballistic Gun 9 | 2 . 2 2 . . . 3 Ballistic Cannon 9 | . . . 2 3 . . 4 Launcher 5 | . . . . 3 . . 2 Special Weapon . | . . . . . . . . Impact Weapon 1 | . . . . . . . 1 Slashing Weapon . | . . . . . . . . Piercing Weapon . | . . . . . . . . Special Melee Weapon . | . . . . . . . . Unidentified Prototypes 1 | . . . 1 . . . . Parts Lost 36 | . . 2 8 1 . . 25 Power 6 | . . 1 1 . . . 4 Propulsion 11 | . . 1 2 . . . 8 Utility 11 | . . . 4 1 . . 6 Weapon 8 | . . . 1 . . . 7 Highest Loss Streak 11 | . . 2 2 1 . . 11 To Critical Strikes . | . . . . . . . . Average Slot Usage (%) 96 | . 99 99 97 99 100 100 87 Engine 8 | . 14 4 10 11 11 11 3 Core 2 | . . 8 . . . . 4 Treads 23 | . 28 27 21 22 22 22 20 Leg 1 | . . . . . . . 5 Device 4 | . . . . . 7 11 10 Storage 15 | . 27 28 13 11 11 11 9 Processor 1 | . . . . . . . 4 Protection 8 | . . . 19 21 14 11 1 Energy Gun 1 | . . . 9 . . . . Ballistic Gun 22 | . 28 27 20 22 22 22 18 Launcher 4 | . . . . 8 11 11 2 Impact Weapon 1 | . . . . . . . 4 Naked Turns . | . . . . . . . . Heaviest Build 106 | 11 27 32 52 49 50 50 106 Greatest Support 80 | 40 40 40 40 40 40 40 80 Greatest Overweight (x) 30 | 3 . 1 2 1 1 1 30 Average Overweight (x) . | 1 . . . 1 1 1 1 Largest Inventory Capacity 25 | 8 15 15 15 15 15 15 25 Average Capacity 15 | 7 13 15 15 15 15 15 19 Most Carried 17 | 6 15 15 15 14 14 14 17 Average Carried 13 | 3 13 14 13 12 12 13 13 Final Capacity 25 | 8 15 15 15 15 15 15 25 Final Carried 15 | 6 15 15 13 12 13 14 8 Class Distribution -------------------- 38% | Scavenger-Tank 19% | Mutant 17% | Scavenger-Skirmisher 12% | Assassin 9% | Scavenger-Mutant Dominant Class ---------------- Mutant | -10/Materials Scavenger-Mutant | -10/Mines Scavenger-Tank | -9/Materials Scavenger-Tank | -9/Mines Scavenger-Tank | -9/Exiles Scavenger-Skirmisher | -8/Mines Assassin | -8/Materials Resources | -11 -10 -10 -9 -9 -9 -8 -8 ----------- Run | Yrd Mat Min Mat Min Exi Min Mat Matter Collected 2576 | 195 375 82 559 303 . 75 987 Remotely . | . . . . . . . . Salvage Created 4616 | . 571 129 1714 456 . 136 1610 Parts 262 | . 40 9 84 38 . 11 80 Haulers Intercepted 6 | . 1 . 2 . . . 3 Recyclers Shooed 3 | . 2 . 1 . . . . Parts Field Recycled . | . . . . . . . . Retrieved Matter . | . . . . . . . . Parts Self-Destructed . | . . . . . . . . Prevented . | . . . . . . . . Kills | -11 -10 -10 -9 -9 -9 -8 -8 ------- Run | Yrd Mat Min Mat Min Exi Min Mat Combat Hostiles Destroyed 88 | . 12 4 20 15 . 7 30 Melee 1 | . . . . . . . 1 Guns 60 | . 12 4 20 7 . 1 16 Cannons 3 | . . . . 1 . . 2 AOE 23 | . . . . 7 . 6 10 Classes Destroyed 14 | . 7 . 1 3 . 1 2 Worker 12 | . 2 . 1 . . . 9 Builder 8 | . . . . 2 . . 6 Tunneler 5 | . . . . 3 . . 2 Hauler 6 | . 1 . 2 . . . 3 Recycler 15 | . 2 . 9 . . . 4 Operator 1 | . 1 . . . . . . Watcher 8 | . 2 . 4 . . . 2 Swarmer 28 | . 9 2 7 4 . 3 3 Grunt 46 | . 3 2 9 10 . 3 19 Brawler 1 | . . . . . . . 1 Sentry 11 | . . . 6 . . . 5 Hunter 2 | . . . . . . 1 1 Heavy 1 | . . . . . . . 1 Assembled 1 | . . . . 1 . . . Best Kill Streak 10 | . 6 2 4 8 . 6 10 Combat Bots Only 6 | . 6 2 4 5 . 6 4 Max Kills in Single Turn 7 | . 1 1 2 4 . 3 7 Gunslinging . | . . . . . . . . Exploded 4 | . . . . 4 . 3 2 Melee 1 | . . . . . . . 1 Uniques/NPCs Destroyed . | . . . . . . . . Combat | -11 -10 -10 -9 -9 -9 -8 -8 -------- Run | Yrd Mat Min Mat Min Exi Min Mat Hostile Shots Fired 528 | . 45 28 149 53 . 10 243 Missed 164 | . 14 7 50 20 . 3 70 Damage Taken 5253 | . 256 258 1033 365 . 91 3250 Core 748 | . 19 49 78 44 . . 558 Absorbed by Shields . | . . . . . . . . Regen/Repaired (Parts) 165 | . . . 165 . . . . Core Remaining (%) 80 | 100 . 72 . . . 69 . Volleys Fired 240 | . 60 13 64 24 . 5 74 Largest 3 | . 2 2 3 3 . 3 3 Hottest 173 | . 40 40 173 85 . 79 132 Shots Fired 596 | . 120 25 168 61 . 15 207 Gun 517 | . 120 25 163 47 . 10 152 Cannon 44 | . . . 5 8 . . 31 Launcher 35 | . . . . 6 . 5 24 Special . | . . . . . . . . Kinetic 512 | . 120 25 120 55 . 10 182 Thermal 49 | . . . 48 . . . 1 Explosive 35 | . . . . 6 . 5 24 Electromagnetic . | . . . . . . . . Robot Hit Streak 13 | . 10 12 11 5 . 12 13 Robot Miss Streak 7 | . 6 6 7 3 . 1 5 Penetration Max . | . . . . . . . . Secondary Targets 8 | . 3 . 2 . . . 3 Max Gunslinging Chain 1 | . 1 . 1 . . . 1 Shots Hit Robots 336 | . 70 14 81 32 . 10 129 Core Hits 209 | . 31 8 43 24 . 14 89 Critical Kills 3 | . . . . . . . 3 Critical Parts Destroyed 2 | . . . . 1 . . 1 Critical Strikes 10 | . . . 4 1 . . 5 Burn 4 | . . . 4 . . . . Destroy 2 | . . . . 1 . . 1 Blast 1 | . . . . . . . 1 Smash 3 | . . . . . . . 3 Melee Attacks 15 | . . . . . . . 15 Impact 15 | . . . . . . . 15 Slashing . | . . . . . . . . Piercing . | . . . . . . . . Sneak Attacks 7 | . . . . . . . 7 Combat Hostiles . | . . . . . . . . Follow-up Attacks . | . . . . . . . . Damage Inflicted 9285 | . 743 133 1593 1137 . 511 5168 Guns 4295 | . 743 131 1509 386 . 103 1423 Cannons 655 | . . . 84 146 . . 425 Explosions 3411 | . . . . 605 . 408 2398 Melee 922 | . . . . . . . 922 Ramming 2 | . . 2 . . . . . Kinetic 4314 | . 743 131 957 532 . 103 1848 Thermal 636 | . . . 636 . . . . Explosive 3411 | . . . . 605 . 408 2398 Electromagnetic . | . . . . . . . . Impact 922 | . . . . . . . 922 Slashing . | . . . . . . . . Piercing . | . . . . . . . . Highest Corruption 13 | . . . . . . . 13 Average Corruption 13 | . . . . . . . 13 Corruption Purged . | . . . . . . . . Corruption Blocked . | . . . . . . . . Effects 3 | . . . . . . . 3 Message Errors 1 | . . . . . . . 1 Energy Discharges 1 | . . . . . . . 1 Weapon Failures 1 | . . . . . . . 1 Overload Shots . | . . . . . . . . Overflow Damage 435 | . . . . 11 . . 424 Projectiles 6 | . . . . . . . 6 Explosions 80 | . . . . 11 . . 69 Melee 349 | . . . . . . . 349 Knockbacks 3 | . . . . . . . 3 Impact 2 | . . . . . . . 2 Kinetic 1 | . . . . . . . 1 Secondary . | . . . . . . . . Self-Inflicted Damage 92 | . . . . . . . 92 Shots 2 | . . . . . . . 2 Rammed 1 | . . 1 . . . . . Targets Rammed 1 | . . 1 . . . . . Kicked . | . . . . . . . . Crushed . | . . . . . . . . Highest Temperature 510 | . 12 24 510 246 . 114 387 Average Temperature 112 | . 7 11 131 84 . 51 103 Received Heat Transfer 1764 | . 30 102 219 180 . 18 1215 Effects 15 | . . . 11 3 . . 1 Shutdowns 2 | . . . 2 . . . . Energy Bleed 2 | . . . 2 . . . . Interference 6 | . . . 3 3 . . . Matter Decay 1 | . . . 1 . . . . Short Circuit 3 | . . . 2 . . . 1 Damage (minor) 1 | . . . 1 . . . . Siege Activations . | . . . . . . . . Robots Corrupted . | . . . . . . . . Combat Hostiles . | . . . . . . . . Parts Fried 6 | . . . . . . . 6 Impact Corruptions 12 | . . . . . . . 12 Robots Melted . | . . . . . . . . Combat Hostiles . | . . . . . . . . Parts Melted 2 | . . . 2 . . . . Heat Transferred 1406 | . . . 1406 . . . . Parts Sabotaged . | . . . . . . . . Parts Stolen . | . . . . . . . . Parts Stripped . | . . . . . . . . Power Chain Reactions . | . . . . . . . . Alert | -11 -10 -10 -9 -9 -9 -8 -8 ------- Run | Yrd Mat Min Mat Min Exi Min Mat Peak Influence 572 | . 204 191 289 308 . 204 572 Initial 112 | . . 34 . 112 . . 20 Average 170 | . 52 49 196 173 . 27 367 Maximum Alert Level 2 | . 1 . 1 1 . 1 2 Low Security (%) 61 | 100 96 100 41 39 . 97 19 Level 1 23 | . 3 . 58 60 . 2 27 Level 2 14 | . . . . . . . 53 Level 3 . | . . . . . . . . Level 4 . | . . . . . . . . Level 5 . | . . . . . . . . High Security . | . . . . . . . . Max Security . | . . . . . . . . Squads Dispatched 10 | . 1 2 2 . . . 5 Investigation 3 | . 1 . 2 . . . . Extermination . | . . . . . . . . Reinforcement 5 | . . . . . . . 5 Assault 2 | . . 2 . . . . . Garrison . | . . . . . . . . Intercept . | . . . . . . . . Searches Triggered . | . . . . . . . . Construction Impeded 2 | . . . . . . . 2 Haulers Reinforced . | . . . . . . . . Active Scanning Responses . | . . . . . . . . Cargo Convoy Interrupts . | . . . . . . . . Stealth | -11 -10 -10 -9 -9 -9 -8 -8 --------- Run | Yrd Mat Min Mat Min Exi Min Mat Distress Signals 8 | . . . 2 . . . 6 Communications Jammed . | . . . . . . . . Distress Signals . | . . . . . . . . Times Spotted 134 | . 22 10 31 15 . 6 50 Peak Tracking Total 7 | . 4 4 7 4 . 6 7 Tactical Retreats . | . . . . . . . . Traps | -11 -10 -10 -9 -9 -9 -8 -8 ------- Run | Yrd Mat Min Mat Min Exi Min Mat Traps Triggered 1 | . 1 . . . . . . Indirectly . | . . . . . . . . Trap Hack Attempts . | . . . . . . . . Triggered . | . . . . . . . . Disarmed . | . . . . . . . . Reprogrammed . | . . . . . . . . Reused . | . . . . . . . . Traps Extracted . | . . . . . . . . Installed . | . . . . . . . . Triggered . | . . . . . . . . Machines | -11 -10 -10 -9 -9 -9 -8 -8 ---------- Run | Yrd Mat Min Mat Min Exi Min Mat Machines Disabled 14 | . . . 3 . . . 11 Max in Single Turn 3 | . . . 1 . . . 3 Machines Repaired . | . . . . . . . . Machines Dismantled . | . . . . . . . . Machines Sabotaged . | . . . . . . . . Overloaded Fab Kills . | . . . . . . . . Hacking | -11 -10 -10 -9 -9 -9 -8 -8 --------- Run | Yrd Mat Min Mat Min Exi Min Mat Machines Accessed 13 | . 6 . 3 . 2 . 2 Terminals 9 | . 6 . 1 . . . 2 Fabricators . | . . . . . . . . Repair Stations 1 | . . . 1 . . . . Recycling Units . | . . . . . . . . Scanalyzers 1 | . . . 1 . . . . Garrison Access . | . . . . . . . . Total Hacks 47 | . 14 . 19 . 10 . 4 Successful 29 | . 2 . 14 . 10 . 3 Failed 18 | . 12 . 5 . . . 1 Catastrophic 4 | . 4 . . . . . . Database Lockouts . | . . . . . . . . Manual 14 | . 9 . 2 . 1 . 2 Terminals 20 | . 14 . 2 . . . 4 Fabricators . | . . . . . . . . Repair Stations 7 | . . . 7 . . . . Recycling Units . | . . . . . . . . Scanalyzers 10 | . . . 10 . . . . Garrison Access . | . . . . . . . . Terminal Hacks 13 | . 2 . . . 10 . 1 Record 10 | . . . . . 9 . 1 Prototype ID Bank 1 | . 1 . . . . . . Unreport Threat 1 | . 1 . . . . . . Derelict Proto ID Bank 1 | . . . . . 1 . . Fabricator Hacks . | . . . . . . . . Repair Station Hacks 5 | . . . 5 . . . . Scan Component 3 | . . . 3 . . . . Repair 2 | . . . 2 . . . . Recycling Unit Hacks . | . . . . . . . . Scanalyzer 9 | . . . 9 . . . . Insert Component 4 | . . . 4 . . . . Analyze 5 | . . . 5 . . . . Garrison Access Hacks . | . . . . . . . . Unauthorized Hacks 2 | . . . . . . . 2 Terminals 2 | . . . . . . . 2 Botnet 2 | . . . . . . . 2 Fabricators . | . . . . . . . . Repair Stations . | . . . . . . . . Recycling Units . | . . . . . . . . Scanalyzers . | . . . . . . . . Garrison Access . | . . . . . . . . Data Cores Recovered 1 | . 1 . . . . . . Used . | . . . . . . . . Hacking Detections 10 | . 6 . 3 . . . 1 Full Trace Events 2 | . . . 2 . . . . Feedback Events . | . . . . . . . . Feedback Blocked . | . . . . . . . . Robot Schematics Acquired . | . . . . . . . . Robots Built . | . . . . . . . . Authchips . | . . . . . . . . Time . | . . . . . . . . Total Robot Build Rating . | . . . . . . . . Part Schematics Acquired 4 | . . . 4 . . . . Parts Built . | . . . . . . . . Authchips . | . . . . . . . . Time . | . . . . . . . . Total Part Build Rating . | . . . . . . . . Parts Repaired 2 | . . . 2 . . . . Time 64 | . . . 64 . . . . Parts Recycled . | . . . . . . . . Recycled Matter . | . . . . . . . . Retrieved Matter . | . . . . . . . . Retrieved Components . | . . . . . . . . Parts Scanalyzed 4 | . . . 4 . . . . Part Schematics Acquired 4 | . . . 4 . . . . Parts Damaged 1 | . . . 1 . . . . Bothacking | -11 -10 -10 -9 -9 -9 -8 -8 ------------ Run | Yrd Mat Min Mat Min Exi Min Mat Used RIF Installer . | . . . . . . . . Robots Hacked . | . . . . . . . . Non-combat . | . . . . . . . . Combat . | . . . . . . . . Robot Hacks Applied . | . . . . . . . . Relay Couplers Released . | . . . . . . . . Fabnet Peak Effective % . | . . . . . . . . Robots Rewired . | . . . . . . . . Allies Hacked . | . . . . . . . . Hacks Repelled . | . . . . . . . . Allies | -11 -10 -10 -9 -9 -9 -8 -8 -------- Run | Yrd Mat Min Mat Min Exi Min Mat Total Allies 6 | . . 6 . . . . . Largest Group 3 | . . 3 3 . . . . Highest-Rated Group 76 | . . 76 40 . . . . Highest-Rated Ally 31 | . . 31 16 . . . . Total Orders . | . . . . . . . . Ally Attacks 54 | . . 36 18 . . . . Total Damage 650 | . . 448 202 . . . . Kills 15 | . . 11 4 . . . . Allies Corrupted . | . . . . . . . . Allies Melted . | . . . . . . . . Intel | -11 -10 -10 -9 -9 -9 -8 -8 ------- Run | Yrd Mat Min Mat Min Exi Min Mat Robot Analysis Total . | . . . . . . . . Derelict Logs Recovered 3 | . . 2 . 1 . . . Drone Launches . | . . . . . . . . Drone Recoveries . | . . . . . . . . Exploration | -11 -10 -10 -9 -9 -9 -8 -8 ------------- Run | Yrd Mat Min Mat Min Exi Min Mat Turns Passed 11173 | 154 1457 1463 1415 953 2086 1115 2530 Spaces Moved 4597 | 103 785 758 456 282 869 441 903 Core 80 | 77 . . . . . . 3 Treads 4517 | 26 785 758 456 282 869 441 900 Legs . | . . . . . . . . Wheels . | . . . . . . . . Hover . | . . . . . . . . Flight . | . . . . . . . . Fastest Speed 50 | 50 160 160 160 240 240 240 160 Average Speed 210 | 136 160 160 236 240 240 240 239 Slowest Speed 1550 | 200 160 240 320 240 240 240 1550 Overloaded Moves . | . . . . . . . . Propulsion Burnouts . | . . . . . . . . Robots Hopped . | . . . . . . . . Cave-ins Triggered 1 | . . . . . . . 1 Exploration Rate (%) 58 | 7 93 96 42 45 90 44 53 Regions Visited 7 Branch Regions 4 Pre-discovered Areas . | . . . . . . . . Known Exits Taken . | . . . . . . . . Unknown Exits Taken 7 | 1 1 1 1 1 1 1 . Scrap Searched 1 | . . 1 . . . . . Spaces Dug . | . . . . . . . . Terrain Destroyed 256 | . . . . 36 . 45 175 Melee . | . . . . . . . . Projectile 6 | . . . . . . . 6 AOE 250 | . . . . 36 . 45 169 Terrain Rammed . | . . . . . . . . Walls Destroyed . | . . . . . . . . Machines Disabled . | . . . . . . . . Actions | -11 -10 -10 -9 -9 -9 -8 -8 --------- Run | Yrd Mat Min Mat Min Exi Min Mat Total 5601 | 114 879 984 660 511 871 489 1093 Wait 582 | . 19 191 102 193 . 37 40 Move 4590 | 102 784 757 455 281 868 440 903 Hop . | . . . . . . . . Pick Up 63 | 6 11 9 14 . 1 4 18 Fast Attach 14 | 6 1 2 1 . . . 4 Attach 48 | . . 1 16 7 1 . 23 Detach 16 | . . . 3 6 1 . 6 Swap 3 | . 1 1 . . . . 1 Drop 29 | . 3 9 5 . . 3 9 Fire 240 | . 60 13 64 24 . 5 74 Melee 15 | . . . . . . . 15 Ram . | . . . . . . . . Kick . | . . . . . . . . Crush 1 | . . 1 . . . . . Escape Stasis . | . . . . . . . . Rewire . | . . . . . . . . Trap . | . . . . . . . . Miscellaneous . | . . . . . . . . Route ------- -11/Scrapyard -10/Materials (discovered 4 exits: *Mat x3 / [*Min]) -10/Mines (discovered 2 exits: *Mat x2) -9/Materials (discovered 2 exits: *Mat / [*Min]) -9/Mines -9/Exiles (discovered 2 exits: [*Min x2]) -8/Mines -8/Materials (discovered 3 exits: [*Fac] / *Sto x2) History --------- Turn | Location | Event 2 | -11/Scrapyard | Met Revision 17 9 | -11/Scrapyard | Discovered new exit (range 16) 155 | -11/Scrapyard | Entered Materials 225 | -10/Materials | Discovered new exit (range 16) 310 | -10/Materials | Build established: Mutant 331 | -10/Materials | Discovered new exit (range 9) 954 | -10/Materials | Discovered new exit (range 15) 1068 | -10/Materials | Discovered new exit (range 10) 1612 | -10/Materials | Entered Mines 1905 | -10/Mines | Met a Derelict testing a Signal Generator 2221 | -10/Mines | Learned Materials garrison access intel 2455 | -10/Mines | Build established: Scavenger-Mutant 2476 | -10/Mines | Found a hidden stash of uninstalled traps 2620 | -10/Mines | Assisted by bots powering up and referring to "LRC-V3" 2836 | -10/Mines | Discovered new exit (range 5) 2905 | -10/Mines | Discovered new exit (range 10) 3075 | -10/Mines | Entered Materials 3075 | -9/Materials | Accompanied by 3 allies 3075 | -9/Materials | Evolved 2 slots: Utility x1, Weapon x1 3166 | -9/Materials | Lost 3 allies 3475 | -9/Materials | Build established: Scavenger-Tank 3988 | -9/Materials | Discovered new exit (range 9) 4214 | -9/Materials | Repaired Hvy. Assault Rifle 4248 | -9/Materials | Repaired Med. Armor Plating 4449 | -9/Materials | Discovered new exit (range 9) 4490 | -9/Materials | Entered Mines 4530 | -9/Mines | Met a Derelict bent on vengeance 4583 | -9/Mines | Learned 2 Materials zone layouts 4721 | -9/Mines | Excavation squad dispatched 4721 | -9/Mines | A large section of the Mines collapsed 4971 | -9/Mines | Excavation squad dispatched 5221 | -9/Mines | Excavation squad dispatched 5426 | -9/Mines | Deemed a non-threat by the Exiles lab entrance 5429 | -9/Mines | Discovered new exit (range 5) 5443 | -9/Mines | Entered Exiles 5503 | -9/Exiles | Discovered new exit (range 15) 5549 | -9/Exiles | Met 8R-AWN 5592 | -9/Exiles | Met EX-HEX 5691 | -9/Exiles | Met EX-BIN 5763 | -9/Exiles | Aligned with FarCom system 5765 | -9/Exiles | Given EX-Vault access code 6115 | -9/Exiles | Opened EX-Vault 6144 | -9/Exiles | Found Cloak of Protection 6195 | -9/Exiles | Warned to stay clear of 0b10 Research branches 6281 | -9/Exiles | Met EX-DEC 6402 | -9/Exiles | Visited The Gauntlet 6800 | -9/Exiles | Discovered new exit (range 12) 7529 | -9/Exiles | Left Exiles lab with Cloak of Protection 7529 | -9/Exiles | Entered Mines 7832 | -8/Mines | Build established: Scavenger-Skirmisher 8606 | -8/Mines | Discovered new exit (range 6) 8644 | -8/Mines | Entered Materials 8644 | -8/Materials | Evolved 2 slots: Propulsion x2 8645 | -8/Materials | Identified exit to Storage 9748 | -8/Materials | Lost 3 parts (1p1n1u) 9868 | -8/Materials | Lost 3 parts (1p1n1w) 10008 | -8/Materials | Build established: Assassin 10077 | -8/Materials | Discovered exit to Storage (range 5) 10425 | -8/Materials | Discovered new exit (range 12) 11098 | -8/Materials | Lost 3 parts (1p1n1w) 11129 | -8/Materials | Crushed by falling debris 11129 | -8/Materials | System corruption reached 10% 11157 | -8/Materials | Core integrity fell below 50% 11169 | -8/Materials | Core integrity fell below 20% 11174 | -8/Materials | Destroyed by Y-45 Defender with Beam Rifle Last Messages --------------- 11159_ U-05 Engineer lays Concrete. 11160_ K-01 Serf collects debris. 11160_ U-05 Engineer lays Concrete. 11161_ Assault Cannon broken. 11161_ Overheating: Short circuit. 11161_ The unstable cave ceiling collapses. 11161_ Broken Assault Cannon destroyed. 11161_ U-05 Engineer lays Concrete. 11163_ U-05 Engineer destroyed. 11164_ K-01 Serf collects debris. 11164_ U-05 Engineer lays Concrete. 11166_ S0G27PNMSH5AF6A76W54#F 11166_ U-05 Engineer lays Concrete. 11167_ K-01 Serf collects debris. 11168_ U-05 Engineer lays Concrete. 11170_ K-01 Serf collects debris. 11171_ U-05 Engineer lays Concrete. 11172_ Y-45 Defender destroyed. 11173_ U-05 Engineer lays Concrete. 11174_ K-01 Serf collects debris. Map ----- +----------------------------------------------------+ | ??###########?# ## ??????????? + #??? | | ??############# ## ?????????????# || #??? | | ??# ########?????????????# %| #??? | | ??# ####????????????????????# | #??? | | ?????????????????????????????????????# #??? | | ?????????????????????????????????????#![% !### | | ?????????????????????????????????????#=!*! =+%/ | | ?????????????????????????????????????##+######### | | ??????????????????????????????????????# #????????? | | ??????????????????????????????????????#[#????????? | | ??????????????????????????????????????# #????????? | | ?????????????????????%+#?##??????????## ##???????? | | ??????????????????# % # ##?####???## ##???????? | | ???????????????? # ! ?? ??##[##???????? | | ??????????????? [ Y ?? ?### ###??????? | | ??????????????? [%[ % "??"""" # # ##?????? | | ??????>????????? *[[ =% ""?"""" # # # #?????? | | ??????????????w?? % k % """%""" # # #?##??? | | ??????????????????#kg ""%%""" # # ########## | | ??????????????????# % # ""%"""" # ^ % | | ??????????????????#%gg # # | | ???????????????????# %% =! ####### # | | ???????????????????# = u%=[= %u ^ | | ???????????????????# [[= [ #### #### | | ???????????????????# == ##?# ### """ | | ???????????????????# @ #?# ###T "" | | ???????????????????# % ####+##+###" """ | | ???????????????????## ##% # ## | | ???????????????????# % # ! #^^^ | | ???????????????????# " # # | | ???????????????????# """ a ## !! | | ???????????????????# """ # # ! ## ! | | ???????????????????# # # ! ## | | ???????????????????# # # ## ! | | ???????????????????# # # ## # Y"# | | ???????????????????# "" # %####+####### #"""# | | ???????????????????# """# ##### | | ???????????????????# S"#% ########### | | ???????????????????#! """# #??????# | | ???????????????????# ???# #??????# | | ???????????????????# ????# #??????# | | ???????????????????###??Y?#"##""#### ####???#### | | ??????????????????????????# #?###??# #????### | | ??????????????????????????# #??????#! !#????# ! | | ??????????????????????????###??????##!!!!##????# | | ????????????????????????????????????######?????# | | ???????????????????????????????????????????????### | | ?????????????????????????????????????????????????? | | ?????????????????????????????????????????????????? | | ?????????????????????????????????????????????????? | +----------------------------------------------------+ Best States ------------- Heat Dissipation 45 Energy Generation 18 Energy Capacity 275 Matter Stores 350 Matter Capacity 450 Sight Range 16 Robot Scan Range 14 Terrain Scan Density 10 Cloak Strength 5 Armor Coverage 375 Evasion (%) 50 Melee Accuracy 5 Recoil Reduction 4 Item Schematics ----------------- Lgt. Treads | -9/Materials | Scanalyzed Hvy. Ion Engine | -9/Materials | Scanalyzed Imp. Heat Sink | -9/Materials | Scanalyzed Beamcaster | -9/Materials | Scanalyzed Robot Schematics ------------------ None Fabricated ------------ Nothing Alien Tech Used ----------------- None Achievements -------------- None Challenges ------------ None Game ------ Seed EnhancedVisualFalx Manual? 0 Play Time 00:56:51 Cumulative 65.9 hours Start 2024.04.16 @ 22:15:35 End 2024.04.17 @ 20:54:28 Sessions 3 Manual Loads 0 Difficulty Rogue Special Mode None Game No. 57 Rogue 57 Adventurer 0 Explorer 0 Win Type - Total 0 Types 0/0/0/0/0/0/0/0/0 Lore% 16 Gallery% 28 Achievement% 23 Wizard Run 0 Options --------- Layout 2 ASCII 0 Keyboard 0 Movement Arrows Keybinds 0 Fullscreen 1 Font 16/Cog Map View 50x49 Zoom Use 0% Tactical HUD 1 Map Filters NONE Filters NONE Steam SD RUN: 7f0109e6-57af-4f36-bcf5-4375016330f2